Cogmind - Beta 17 @@@ ROGUE MODE // 2026.07.29 @ 14:40:19 Player: 4R-ZE3 Result: Destroyed by Executioner with Helical Railgun Performance ------------- Evolutions (8) 4000 Regions Visited (14) 2800 Robots Destroyed (39) 195 Value Destroyed (1070) 1070 Prototype IDs (86) 1720 Alien Tech Used (1) 200 Bonus (1840) 1840 TOTAL SCORE: 11825 Bonus ------- High Alert Combat Kills 50 Registered with UFD 300 Met Optimus in HQ 500 Met Optimus at Protoforge 1000 Friendly Fire -10 Cogmind --------- Core Integrity 0/1450 Matter 290/300 Energy 83/100 System Corruption 5% Temperature Cool (0) Movement Flying (22) Location -2/Protoforge Parts ------- > --- POWER (2) -------- (None) > --- PROPULSION (9) --- Experimental Surge Thruster Experimental Surge Thruster > --- UTILITY (10) ----- Experimental Coolant Injector Enhanced Optical Array Makeshift Core Shielding > --- WEAPON (2) ------- (None) > --- INVENTORY (5) ---- Overtuned Medium Treads Overtuned Medium Treads Peak State ------------ > --- POWER ------------ Light Deuterium Engine Light Antimatter Reactor > --- PROPULSION ------- Impulse Thruster Array Impulse Thruster Array Impulse Thruster Array Impulse Thruster Array Experimental Surge Thruster > --- UTILITY ---------- 0bPrime Scrap Suit Experimental Cooling System Large Storage Unit Enhanced Optical Array Advanced Signal Interpreter Makeshift Medium Armor Plating Centrium Medium Armor Plating Centrium Medium Armor Plating Experimental Hacking Suite > --- WEAPON ----------- Concept XC Strikerail Enhanced Force Lance > --- INVENTORY -------- Light Antimatter Reactor Impulse Thruster Array System Restoration Module Subatomic Replicator UFD Drillbomb [Rating: 187] Favorites ----------- Power Neutrino Core Engine Ion Engine Power Core Neutrino Core Reactor Light Antimatter Reactor Propulsion Light Treads Treads Light Treads Wheel Compact Wheel Flight Unit Impulse Thruster Array Utility Huge Storage Unit Device Seismic Detector Storage Huge Storage Unit Processor Advanced Signal Interpreter Hackware System Shield Protection Medium Armor Plating Weapon Assault Rifle Ballistic Gun Assault Rifle Ballistic Cannon Battle Cannon Launcher Subdweller Shrapnel Launcher Special Weapon Junk Cannon Impact Weapon Mace Slashing Weapon Scythe Piercing Weapon Lance Build | -11 -10 -10 -8 -8 -6 -5 -5 -5 -4 -3 -3 -2 -2 -2 ------- Run | Yrd Mat Sub Rec Scr Fac Fac Upp Upp Fac Res Qua Res Tes Frg Slots Evolved 16 | . . . . . 8 2 . . 2 2 . 2 . . Power 1 | . . . . . . . . . . 1 . . . . Propulsion 7 | . . . . . 4 1 . . 1 . . 1 . . Utility 8 | . . . . . 4 1 . . 1 1 . 1 . . Weapon . | . . . . . . . . . . . . . . . Parts Attached 120 | 6 6 9 4 3 21 5 1 . 4 6 2 4 1 48 Power 14 | 1 1 2 . . . . . . 1 2 . . . 7 Engine 5 | 1 1 1 . . . . . . . . . . . 2 Core 2 | . . 1 . . . . . . . 1 . . . . Reactor 7 | . . . . . . . . . 1 1 . . . 5 Propulsion 43 | 2 1 1 2 2 8 1 . . . 3 . 3 1 19 Treads 6 | 2 1 1 2 . . . . . . . . . . . Leg . | . . . . . . . . . . . . . . . Wheel 2 | . . . . 2 . . . . . . . . . . Hover . | . . . . . . . . . . . . . . . Flight 35 | . . . . . 8 1 . . . 3 . 3 1 19 Utility 42 | 1 4 1 . . 11 4 . . 3 1 . 1 . 16 Device 16 | . 1 . . . 3 2 . . 3 1 . . . 6 Storage 4 | 1 1 . . . . 1 . . . . . . . 1 Processor 7 | . . . . . 5 1 . . . . . . . 1 Hackware 3 | . . . . . 2 . . . . . . 1 . . Protection 12 | . 2 1 . . 1 . . . . . . . . 8 Artifact . | . . . . . . . . . . . . . . . Weapon 21 | 2 . 5 2 1 2 . 1 . . . 2 . . 6 Energy Gun . | . . . . . . . . . . . . . . . Energy Cannon . | . . . . . . . . . . . . . . . Ballistic Gun 11 | 2 . 3 2 . . . . . . . . . . 4 Ballistic Cannon 1 | . . 1 . . . . . . . . . . . . Launcher 2 | . . 1 . . . . . . . . . . . 1 Special Weapon 1 | . . . . 1 . . . . . . . . . . Impact Weapon 1 | . . . . . 1 . . . . . . . . . Slashing Weapon 2 | . . . . . 1 . 1 . . . . . . . Piercing Weapon 3 | . . . . . . . . . . . 2 . . 1 Special Melee Weapon . | . . . . . . . . . . . . . . . Unidentified Prototypes 5 | . . . . 1 1 . . . . . . . . 3 Parts Lost 53 | . . 8 3 . 1 1 . . . 1 . . . 39 Power 10 | . . 1 . . . . . . . 1 . . . 8 Propulsion 18 | . . 2 . . . 1 . . . . . . . 15 Utility 18 | . . 2 . . 1 . . . . . . . . 15 Weapon 7 | . . 3 3 . . . . . . . . . . 1 Highest Loss Streak 15 | . . 2 1 . 1 1 . . . 1 . . . 15 To Critical Strikes 1 | . . . . . . . . . . . . . . 1 Average Backups 14 | 1 9 16 18 22 5 6 8 9 9 11 11 10 10 4 Power . | . . . 1 1 . . 1 1 1 1 . . . . Propulsion 7 | . 5 9 9 11 1 . 1 1 . 1 4 4 4 1 Utility 3 | . 2 3 4 6 3 4 6 7 8 9 6 5 5 1 Weapon 1 | . . 2 2 2 . . . . . . . . . . Tool/Special . | . . . . . . . . . . . . . . . Unused Backups 22 | . 2 . . 3 7 1 . . . . 2 . . 7 Power . | . . . . . . . . . . . . . . . Propulsion 10 | . 1 . . 1 4 1 . . . . . . . 3 Utility 10 | . . . . 2 3 . . . . . 2 . . 3 Weapon 1 | . 1 . . . . . . . . . . . . . Tool/Special 1 | . . . . . . . . . . . . . . 1 Average Slot Usage (%) 94 | . 99 99 99 97 87 90 90 94 91 91 89 90 91 68 Engine 3 | . 14 5 . . . . . . . . . . . 1 Core 7 | . . 8 14 14 6 5 5 5 5 3 4 4 4 . Treads 17 | . 28 27 27 . . . . . . . . . . . Wheel 3 | . . . . 27 . . . . . . . . . . Flight 6 | . . . . . 37 38 35 35 36 30 28 30 30 21 Device 9 | . 5 7 14 14 10 6 5 5 7 13 14 13 13 7 Storage 11 | . 14 14 14 14 . 4 5 5 5 4 4 4 4 3 Processor 2 | . . . . . 10 15 17 17 15 14 14 13 13 7 Hackware 1 | . . . . . 11 11 11 11 10 9 9 11 13 4 Protection 4 | . 7 6 . . 1 . . . . . . . . 9 Ballistic Gun 20 | . 28 25 28 22 . . . . . . . . . 1 Peak Build Rating 187 | 6 10 17 17 27 52 66 71 71 85 113 122 149 149 187 Average Rating 37 | 4 8 14 16 18 44 59 68 71 78 97 118 143 149 144 On Entrance 62 | . 6 10 16 16 27 47 66 71 71 85 106 122 141 149 Avg Prop Armor Cover (%) 7 | . . . . . . . . . . . . 5 5 7 Naked Turns . | . . . . . . . . . . . . . . . Heaviest Build 109 | 14 96 105 103 109 109 38 40 40 43 47 50 51 50 79 Greatest Support 77 | 40 40 40 40 40 34 42 42 42 47 56 56 67 72 77 Greatest Overweight (x) 4 | . 2 4 4 3 3 1 . . . . . . . 1 Average Overweight (x) . | . . 2 2 2 . . . . . . . . . . Largest Inventory Capacity 25 | 8 25 25 25 25 25 15 15 15 15 15 15 15 15 25 Average Capacity 20 | 7 15 25 25 25 6 14 15 15 15 15 15 15 15 13 Most Carried 25 | 3 15 21 22 25 25 10 11 11 15 15 15 15 14 15 Average Carried 16 | 1 9 18 20 24 6 7 10 11 11 14 14 14 14 9 Final Capacity 25 | 8 25 25 25 25 5 15 15 15 15 15 15 15 15 5 Final Carried 25 | 3 15 20 22 25 5 9 11 11 15 15 15 15 14 2 Scrap Suit Usage (%) 7 | . . . . . . . . . . . . . . 60 Parts Cannibalized 14 | . . . . . . . . . . . . . . 14 Class Distribution -------------------- 44% | Mutant 33% | Scavenger-Mutant 7% | Scavenger-Sprinter 7% | Hacker-Scout 4% | Scientist-Scout Dominant Class ---------------- Mutant | -10/Materials Mutant | -10/Subcaves Scavenger-Mutant | -8/Recycling Scavenger-Mutant | -8/Scraptown Hacker-Scout | -6/Factory Scientist-Scout | -5/Factory Scientist-Scout | -5/Upper Caves Scientist-Scout | -5/Upper Caves Scientist-Scout | -4/Factory Scientist-Scout | -3/Research Hacker-Scout | -3/Quarantine Hacker-Scout | -2/Research Hacker-Scout | -2/Testing Scavenger-Sprinter | -2/Protoforge Resources | -11 -10 -10 -8 -8 -6 -5 -5 -5 -4 -3 -3 -2 -2 -2 ----------- Run | Yrd Mat Sub Rec Scr Fac Fac Upp Upp Fac Res Qua Res Tes Frg Matter Collected 2180 | 130 307 435 254 30 180 . 40 . . . 13 126 146 519 Remotely . | . . . . . . . . . . . . . . . Salvage Created 1539 | 24 354 280 469 . 109 . . . . . 13 126 28 136 Parts 91 | 5 29 18 15 . 4 . . . . . 2 4 5 9 Haulers Intercepted 2 | . 1 . . . 1 . . . . . . . . . Recyclers Shooed 1 | . 1 . . . . . . . . . . . . . Parts Field Recycled . | . . . . . . . . . . . . . . . Retrieved Matter . | . . . . . . . . . . . . . . . Parts Self-Destructed 15 | . . 15 . . . . . . . . . . . . Prevented . | . . . . . . . . . . . . . . . Parts Restored . | . . . . . . . . . . . . . . . Kills | -11 -10 -10 -8 -8 -6 -5 -5 -5 -4 -3 -3 -2 -2 -2 ------- Run | Yrd Mat Sub Rec Scr Fac Fac Upp Upp Fac Res Qua Res Tes Frg Combat Hostiles Destroyed 23 | . 11 8 3 . . . . . . . . . . 1 Guns 20 | . 11 6 3 . . . . . . . . . . . AOE 3 | . . 2 . . . . . . . . . . . 1 Classes Destroyed 12 | 1 4 2 2 . . . . . . . . . . 3 Builder 1 | . . . . . . . . . . . . . . 1 Tunneler 1 | 1 . . . . . . . . . . . . . . Hauler 2 | . 1 . . . 1 . . . . . . . . . Recycler 5 | . . . 4 . . . . . . . . 1 . . Mechanic 1 | . . . . . . . . . . . . . . 1 Operator 4 | . 1 . . . 1 . . . . . 1 . 1 . Turret 2 | . . 2 . . . . . . . . . . . . Swarmer 8 | . 6 2 . . . . . . . . . . . . Grunt 5 | . 5 . . . . . . . . . . . . . Sentry 3 | . . . 3 . . . . . . . . . . . Decapitator 1 | . . . . . . . . . . . . . . 1 Subdweller 6 | . . 6 . . . . . . . . . . . . Best Kill Streak 4 | 1 4 2 4 . 1 . . . . . 1 1 1 1 Combat Bots Only 3 | . 3 2 1 . . . . . . . . . . 1 Max Kills in Single Turn 2 | 1 2 2 1 . 1 . . . . . 1 1 1 1 Gunslinging 1 | . 1 . . . . . . . . . . . . . Exploded 2 | . . 2 . . . . . . . . . . . 1 Melee . | . . . . . . . . . . . . . . . Uniques/NPCs Destroyed . | . . . . . . . . . . . . . . . Combat | -11 -10 -10 -8 -8 -6 -5 -5 -5 -4 -3 -3 -2 -2 -2 -------- Run | Yrd Mat Sub Rec Scr Fac Fac Upp Upp Fac Res Qua Res Tes Frg Hostile Shots Fired 871 | . 63 150 17 . 3 7 13 . 3 3 50 5 4 553 Missed 422 | . 23 60 4 . 3 2 10 . 3 2 34 3 2 276 Hits 449 | . 40 90 13 . . 5 3 . . 1 16 2 2 277 Melee 18 | . . . . . . . . . . . . 2 . 16 Projectile 431 | . 40 90 13 . . 5 3 . . 1 16 . 2 261 AOE 4 | . . . . . . . . . . . . . . 4 Critical Strikes 29 | . . 1 . . . . . . . . . 1 . 27 Actively Blocked 9 | . . . . . . . . . . . . . . 9 Damage Taken 9735 | . 413 1074 195 . 27 64 51 . . 71 252 63 . 7525 Core 1631 | . . 111 . . 3 . 18 . . 1 42 . . 1456 Absorbed by Shields 61 | . . . . . . . . . . . . . . 61 Redirected to Shielding 233 | . . . . . . . . . . . . . . 233 Regen/Repaired (Parts) 117 | . . . . . . . . . . . . . . 117 Core Remaining (%) 91 | 100 . . . 55 99 . . 98 100 . 96 . . . Volleys Fired 115 | 1 39 49 15 . . . . . . . . . . 11 Largest 2 | 2 2 2 2 . . . . . . . . . . 2 Hottest 73 | 40 40 73 60 . . . . . . . . . . 70 Shots Fired 210 | 2 78 87 30 . . . . . . . . . . 13 Gun 189 | 2 78 67 30 . . . . . . . . . . 12 Cannon 16 | . . 16 . . . . . . . . . . . . Launcher 5 | . . 4 . . . . . . . . . . . 1 Special . | . . . . . . . . . . . . . . . Kinetic 209 | 2 78 87 30 . . . . . . . . . . 12 Thermal . | . . . . . . . . . . . . . . . Explosive 1 | . . . . . . . . . . . . . . 1 Electromagnetic . | . . . . . . . . . . . . . . . Robot Hit Streak 27 | 1 10 27 14 . . . . . . . . . . 2 Robot Miss Streak 5 | . 5 3 2 . . . . . . . . . . 1 Penetration Max . | . . . . . . . . . . . . . . . Secondary Targets 4 | . 3 1 . . . . . . . . . . . . Max Gunslinging Chain 1 | . 1 1 . . . . . . . . . . . . Shots Hit Robots 148 | 1 52 57 20 . 4 . . . . . 1 2 1 10 Core Hits 68 | 1 22 21 9 . 2 . . . . . 1 1 1 10 Critical Kills 2 | . 1 1 . . . . . . . . . . . . Critical Parts Destroyed 1 | . . . 1 . . . . . . . . . . . Critical Strikes 4 | . 1 2 1 . . . . . . . . . . . Destroy 4 | . 1 2 1 . . . . . . . . . . . Melee Attacks 81 | . . . . . 11 10 . . 1 7 5 6 11 30 Impact . | . . . . . . . . . . . . . . . Slashing 30 | . . . . . 11 10 . . 1 7 1 . . . Piercing 51 | . . . . . . . . . . . 4 6 11 30 Sneak Attacks 4 | . . . . . 1 . . . . . . 1 . 2 Combat Hostiles . | . . . . . . . . . . . . . . . Follow-up Attacks . | . . . . . . . . . . . . . . . Damage Inflicted 3229 | 12 658 942 388 . 206 . . . . . 46 135 71 771 Guns 1757 | 12 658 671 388 . . . . . . . . . . 28 Cannons 82 | . . 82 . . . . . . . . . . . . Explosions 433 | . . 189 . . . . . . . . . . . 244 Melee 957 | . . . . . 206 . . . . . 46 135 71 499 Ramming . | . . . . . . . . . . . . . . . Kinetic 2028 | 12 658 942 388 . . . . . . . . . . 28 Thermal . | . . . . . . . . . . . . . . . Explosive 244 | . . . . . . . . . . . . . . 244 Electromagnetic . | . . . . . . . . . . . . . . . Impact . | . . . . . . . . . . . . . . . Slashing 206 | . . . . . 206 . . . . . . . . . Piercing 751 | . . . . . . . . . . . 46 135 71 499 Highest Corruption 5 | . . . . . . . . . . . 1 . . 5 Average Corruption 1 | . . . . . . . . . . . 1 . . 1 Corruption Purged 1 | . . . . . . . . . . . . . . 1 Corruption Blocked . | . . . . . . . . . . . . . . . Effects 1 | . . . . . . . . . . . . . . 1 Matter Fused 1 | . . . . . . . . . . . . . . 1 Overload Shots . | . . . . . . . . . . . . . . . Overflow Damage 185 | . . 74 . . 18 . . . . . . 44 . 49 Projectiles . | . . . . . . . . . . . . . . . Explosions 74 | . . 74 . . . . . . . . . . . . Melee 111 | . . . . . 18 . . . . . . 44 . 49 Knockbacks 1 | . . 1 . . . . . . . . . . . . Impact . | . . . . . . . . . . . . . . . Kinetic 1 | . . 1 . . . . . . . . . . . . Secondary . | . . . . . . . . . . . . . . . Self-Inflicted Damage 49 | . . . . . . . . . . . . . . 49 Shots 1 | . . . . . . . . . . . . . . 1 Rammed . | . . . . . . . . . . . . . . . Targets Rammed . | . . . . . . . . . . . . . . . Kicked . | . . . . . . . . . . . . . . . Crushed . | . . . . . . . . . . . . . . . Highest Temperature 344 | . 8 16 50 . 178 263 13 . 120 178 . 219 344 26 Average Temperature 57 | . 3 7 19 . 36 79 8 . 62 65 . 89 81 26 Received Heat Transfer 1464 | . 144 447 72 . . 18 18 . . . 30 . . 735 Siege Activations . | . . . . . . . . . . . . . . . Martial Activations . | . . . . . . . . . . . . . . . Shielding Activations . | . . . . . . . . . . . . . . . Robots Disrupted . | . . . . . . . . . . . . . . . Combat Hostiles . | . . . . . . . . . . . . . . . Robots Corrupted . | . . . . . . . . . . . . . . . Combat Hostiles . | . . . . . . . . . . . . . . . Parts Fried . | . . . . . . . . . . . . . . . Impact Corruptions . | . . . . . . . . . . . . . . . Robots Melted . | . . . . . . . . . . . . . . . Combat Hostiles . | . . . . . . . . . . . . . . . Parts Melted 1 | . . 1 . . . . . . . . . . . . Heat Transferred . | . . . . . . . . . . . . . . . Parts Sabotaged 2 | . . . . . . . . . . . . . . 2 Parts Stolen . | . . . . . . . . . . . . . . . Parts Stripped . | . . . . . . . . . . . . . . . Power Chain Reactions . | . . . . . . . . . . . . . . . Alert | -11 -10 -10 -8 -8 -6 -5 -5 -5 -4 -3 -3 -2 -2 -2 ------- Run | Yrd Mat Sub Rec Scr Fac Fac Upp Upp Fac Res Qua Res Tes Frg Maximum Alert Level 3 | . . . . . . . . . . . . . . 3 Low Security (%) 93 | 100 100 . 100 . 100 100 . . 100 100 100 100 100 67 Level 1 1 | . . . . . . . . . . . . . . 8 Level 2 3 | . . . . . . . . . . . . . . 15 Level 3 1 | . . . . . . . . . . . . . . 8 Level 4 . | . . . . . . . . . . . . . . . Level 5 . | . . . . . . . . . . . . . . . High Security . | . . . . . . . . . . . . . . . Max Security . | . . . . . . . . . . . . . . . Peak Influence 746 | 5 115 . 62 . 40 91 . . 75 68 39 20 51 746 Initial 61 | . . . 61 . . 14 . . 25 28 22 15 1 12 Average 53 | . 25 . 3 . 4 42 . . 55 49 27 9 24 201 Influence Increases 2812 | 5 361 155 95 . 118 215 30 . 60 72 57 24 84 1536 Destroy 0b10 Robot/C 380 | . 220 80 60 . . . . . . . . . . 20 Destroy 0b10 Robot/NC 70 | 5 10 . 20 . 10 . . . . . 5 5 5 10 Destroy Leader 54 | . 52 . . . 2 . . . . . . . . . Successful Hack 172 | . 19 . 12 . 12 15 . . 28 . 33 10 10 33 Disable Machine 120 | . . . . . 45 . . . . 15 15 . 15 30 Destroy Structure 126 | . . . 3 . 4 20 . . 2 12 4 9 24 48 Partial Spotted 315 | . . . . . 45 60 . . 30 30 . . 30 120 Lose Combat Pursuer 1575 | . 60 75 . . . 120 30 . . 15 . . . 1275 Influence Decreases 2124 | 5 328 59 224 . 88 164 61 10 45 87 68 50 64 871 Entered New Map 229 | . . 17 68 . . 16 31 10 15 27 18 14 2 11 Time Decay 1434 | 5 328 22 146 . 83 122 30 . 30 50 50 36 62 470 Lost Part 445 | . . 20 10 . 5 10 . . . 10 . . . 390 Purge Threat 16 | . . . . . . 16 . . . . . . . . Squads Dispatched 25 | . 1 . . . 6 4 . . . 2 2 2 1 7 Investigation 13 | . 1 . . . 4 3 . . . 2 1 . . 2 Extermination 5 | . . . . . 2 1 . . . . . . 1 1 Reinforcement 7 | . . . . . . . . . . . 1 2 . 4 Assault . | . . . . . . . . . . . . . . . Garrison . | . . . . . . . . . . . . . . . Intercept . | . . . . . . . . . . . . . . . Searches Triggered . | . . . . . . . . . . . . . . . Construction Impeded . | . . . . . . . . . . . . . . . Haulers Reinforced . | . . . . . . . . . . . . . . . Active Scanning Responses . | . . . . . . . . . . . . . . . Cargo Convoy Interrupts . | . . . . . . . . . . . . . . . Stealth | -11 -10 -10 -8 -8 -6 -5 -5 -5 -4 -3 -3 -2 -2 -2 --------- Run | Yrd Mat Sub Rec Scr Fac Fac Upp Upp Fac Res Qua Res Tes Frg Distress Signals 13 | . 1 . . . . 1 . . 1 2 . . . 8 Communications Jammed . | . . . . . . . . . . . . . . . Distress Signals . | . . . . . . . . . . . . . . . Times Spotted 274 | . 21 17 3 . 4 13 8 . 3 9 17 6 3 170 Peak Tracking Total 31 | . 4 6 1 . 3 7 8 . 3 8 15 6 2 31 Tactical Retreats 37 | . 2 2 . . . 4 1 . . 1 . . . 27 Traps | -11 -10 -10 -8 -8 -6 -5 -5 -5 -4 -3 -3 -2 -2 -2 ------- Run | Yrd Mat Sub Rec Scr Fac Fac Upp Upp Fac Res Qua Res Tes Frg Traps Triggered 10 | . 1 . . . 4 . . . . . . . . 5 Indirectly . | . . . . . . . . . . . . . . . Trap Hack Attempts . | . . . . . . . . . . . . . . . Triggered . | . . . . . . . . . . . . . . . Disarmed 9 | . . . . . 9 . . . . . . . . . Reprogrammed . | . . . . . . . . . . . . . . . Reused . | . . . . . . . . . . . . . . . Traps Extracted . | . . . . . . . . . . . . . . . Installed . | . . . . . . . . . . . . . . . Triggered . | . . . . . . . . . . . . . . . Machines | -11 -10 -10 -8 -8 -6 -5 -5 -5 -4 -3 -3 -2 -2 -2 ---------- Run | Yrd Mat Sub Rec Scr Fac Fac Upp Upp Fac Res Qua Res Tes Frg Machines Disabled 10 | . . 2 . . 3 . . . . 1 1 . 1 2 Max in Single Turn 1 | . . 1 . . 1 . . . . 1 1 . 1 1 Garrison Access 1 | . . . . . . . . . . . . . 1 . Machines Repaired . | . . . . . . . . . . . . . . . Machines Dismantled . | . . . . . . . . . . . . . . . Machines Sabotaged . | . . . . . . . . . . . . . . . Overloaded Fab Kills . | . . . . . . . . . . . . . . . Hacking | -11 -10 -10 -8 -8 -6 -5 -5 -5 -4 -3 -3 -2 -2 -2 --------- Run | Yrd Mat Sub Rec Scr Fac Fac Upp Upp Fac Res Qua Res Tes Frg Machines Accessed 76 | . 9 . 9 5 10 10 . . 2 5 7 2 4 13 Terminals 45 | . 7 . 5 . 5 6 . . 2 1 6 2 3 8 Fabricators . | . . . . . . . . . . . . . . . Repair Stations . | . . . . . . . . . . . . . . . Recycling Units 19 | . 2 . 4 . 4 3 . . . 3 . . . 3 Scanalyzers 4 | . . . . . 1 . . . . 1 1 . . 1 Garrison Access 3 | . . . . . . 1 . . . . . . 1 1 Total Hacks 181 | . 16 . 23 41 22 20 . . 6 8 11 3 5 26 Successful 96 | . 8 . 9 41 14 6 . . 2 2 3 1 2 8 Failed 84 | . 7 . 14 . 8 14 . . 4 6 8 2 3 18 Catastrophic 18 | . 1 . 3 . 1 3 . . 1 . 3 2 1 3 Database Lockouts 1 | . 1 . . . . . . . . . . . . . Manual 77 | . 9 . 4 . 14 17 . . 5 6 8 2 2 10 Terminals 96 | . 13 . 14 . 13 15 . . 6 2 9 3 4 17 Fabricators . | . . . . . . . . . . . . . . . Repair Stations . | . . . . . . . . . . . . . . . Recycling Units 28 | . 3 . 9 . 5 3 . . . 4 . . . 4 Scanalyzers 10 | . . . . . 4 . . . . 2 2 . . 2 Garrison Access 6 | . . . . . . 2 . . . . . . 1 3 Terminal Hacks 60 | . 3 . 4 41 3 1 . . 1 . 2 1 1 3 Record 41 | . . . . 41 . . . . . . . . . . Robot Analysis 2 | . 1 . 1 . . . . . . . . . . . Prototype ID Bank 1 | . . . 1 . . . . . . . . . . . Open DSF 1 | . . . . . 1 . . . . . . . . . Level Access Points 2 | . . . . . . . . . 1 . 1 . . . Branch Access Points 3 | . . . 1 . . . . . . . . 1 1 . Garrison Index 1 | . . . . . . . . . . . . . . 1 Unreport Threat 1 | . . . . . . 1 . . . . . . . . Disarm Traps 2 | . . . . . 2 . . . . . . . . . Recall Investigation 1 | . . . . . . . . . . . . . . 1 Hauler Manifests 1 | . 1 . . . . . . . . . . . . . Zone Layout 3 | . 1 . 1 . . . . . . . 1 . . . Proto ID Catalog 1 | . . . . . . . . . . . . . . 1 Fabricator Hacks . | . . . . . . . . . . . . . . . Repair Station Hacks . | . . . . . . . . . . . . . . . Recycling Unit Hacks 9 | . 2 . 5 . . . . . . . . . . 2 Retrieve Components 9 | . 2 . 5 . . . . . . . . . . 2 Scanalyzer 6 | . . . . . 4 . . . . . 1 . . 1 Retrieve Study 6 | . . . . . 4 . . . . . 1 . . 1 Garrison Access Hacks 1 | . . . . . . . . . . . . . 1 . Seal Access 1 | . . . . . . . . . . . . . 1 . Unauthorized Hacks 20 | . 3 . . . 7 5 . . 1 2 . . . 2 Terminals 11 | . 3 . . . 3 3 . . 1 . . . . 1 Botnet 11 | . 3 . . . 3 3 . . 1 . . . . 1 Fabricators . | . . . . . . . . . . . . . . . Repair Stations . | . . . . . . . . . . . . . . . Recycling Units 9 | . . . . . 4 2 . . . 2 . . . 1 Fedlink 9 | . . . . . 4 2 . . . 2 . . . 1 Scanalyzers . | . . . . . . . . . . . . . . . Garrison Access . | . . . . . . . . . . . . . . . Data Cores Recovered 4 | . 1 . . . 1 . . . . . 1 . 1 . Used 2 | . . . . . 1 . . . . . 1 . . . Hacking Detections 51 | . 6 . 7 . 5 8 . . 2 3 5 2 3 10 Full Trace Events 2 | . . . . . . 1 . . . . . . . 1 Feedback Events . | . . . . . . . . . . . . . . . Feedback Blocked . | . . . . . . . . . . . . . . . Robot Schematics Acquired . | . . . . . . . . . . . . . . . Robots Built . | . . . . . . . . . . . . . . . Authchips . | . . . . . . . . . . . . . . . Time . | . . . . . . . . . . . . . . . Total Robot Build Rating . | . . . . . . . . . . . . . . . Part Schematics Acquired . | . . . . . . . . . . . . . . . Parts Built . | . . . . . . . . . . . . . . . Authchips . | . . . . . . . . . . . . . . . Time . | . . . . . . . . . . . . . . . Total Part Build Rating . | . . . . . . . . . . . . . . . Part Studies Acquired 6 | . . . . . 4 . . . . . 1 . . 1 Parts Repaired . | . . . . . . . . . . . . . . . Time . | . . . . . . . . . . . . . . . Parts Recycled . | . . . . . . . . . . . . . . . Recycled Matter . | . . . . . . . . . . . . . . . Retrieved Matter . | . . . . . . . . . . . . . . . Retrieved Components 14 | . 5 . 6 . . . . . . . . . . 3 Parts Scanalyzed . | . . . . . . . . . . . . . . . Part Schematics Acquired . | . . . . . . . . . . . . . . . Parts Damaged . | . . . . . . . . . . . . . . . Bothacking | -11 -10 -10 -8 -8 -6 -5 -5 -5 -4 -3 -3 -2 -2 -2 ------------ Run | Yrd Mat Sub Rec Scr Fac Fac Upp Upp Fac Res Qua Res Tes Frg Used RIF Installer . | . . . . . . . . . . . . . . . Robots Hacked . | . . . . . . . . . . . . . . . Non-combat . | . . . . . . . . . . . . . . . Combat . | . . . . . . . . . . . . . . . Robot Hacks Applied . | . . . . . . . . . . . . . . . Relay Couplers Released . | . . . . . . . . . . . . . . . Fabnet Peak Effective % . | . . . . . . . . . . . . . . . Robots Rewired . | . . . . . . . . . . . . . . . Allies Hacked . | . . . . . . . . . . . . . . . Hacks Repelled . | . . . . . . . . . . . . . . . Allies | -11 -10 -10 -8 -8 -6 -5 -5 -5 -4 -3 -3 -2 -2 -2 -------- Run | Yrd Mat Sub Rec Scr Fac Fac Upp Upp Fac Res Qua Res Tes Frg Total Allies . | . . . . . . . . . . . . . . . Largest Group . | . . . . . . . . . . . . . . . Highest-Rated Group . | . . . . . . . . . . . . . . . Highest-Rated Ally . | . . . . . . . . . . . . . . . Initial UFD Resources 81 | . . . . . 23 45 59 59 61 63 77 81 81 81 Total Orders . | . . . . . . . . . . . . . . . Ally Attacks . | . . . . . . . . . . . . . . . Total Damage . | . . . . . . . . . . . . . . . Kills . | . . . . . . . . . . . . . . . Allies Corrupted . | . . . . . . . . . . . . . . . Allies Melted . | . . . . . . . . . . . . . . . Intel | -11 -10 -10 -8 -8 -6 -5 -5 -5 -4 -3 -3 -2 -2 -2 ------- Run | Yrd Mat Sub Rec Scr Fac Fac Upp Upp Fac Res Qua Res Tes Frg Active Infowar (turns) 8443 | . 697 1610 2062 1515 382 270 75 10 74 102 106 94 153 1293 Optics 2103 | . . . . . . 196 75 10 74 102 106 94 153 1293 Sensors 826 | . . . . . 268 . . . . 91 106 94 153 114 Terrain 1306 | . . . . . 351 248 75 10 74 102 106 94 153 93 Seismic 5915 | . 697 1610 2062 1515 31 . . . . . . . . . Jamming 2 | . . . . . . 2 . . . . . . . . Robot Analysis Total 2 | . 1 . 1 . . . . . . . . . . . Derelict Logs Recovered 4 | . . 1 . 2 . . 1 . . . . . . . Drone Launches . | . . . . . . . . . . . . . . . Drone Recoveries . | . . . . . . . . . . . . . . . Exploration | -11 -10 -10 -8 -8 -6 -5 -5 -5 -4 -3 -3 -2 -2 -2 ------------- Run | Yrd Mat Sub Rec Scr Fac Fac Upp Upp Fac Res Qua Res Tes Frg Turns Passed 10972 | 90 1711 3034 2062 1515 383 270 75 10 74 102 106 94 153 1293 Spaces Moved 10289 | 51 681 888 621 1015 942 946 305 46 324 311 334 277 438 3110 Core 5 | 5 . . . . . . . . . . . . . . Treads 2239 | 46 681 888 621 3 . . . . . . . . . . Legs . | . . . . . . . . . . . . . . . Wheels 1022 | . . . . 1012 10 . . . . . . . . . Hover . | . . . . . . . . . . . . . . . Flight 7023 | . . . . . 932 946 305 46 324 311 334 277 438 3110 Fastest Speed 13 | 50 160 320 320 145 20 18 22 22 19 19 24 20 13 16 Average Speed 93 | 149 210 322 321 145 21 19 22 22 19 20 24 24 20 28 Slowest Speed 480 | 160 320 480 480 320 145 98 22 22 19 24 24 27 26 101 Overloaded Moves 18 | . . . . . . . . . . . . . 18 . Propulsion Burnouts . | . . . . . . . . . . . . . . . Robots Hopped 74 | . . . . . 3 10 . . 2 2 10 5 . 42 Potential Cave-ins 5 | . . 1 . . . . . . . . . . . 4 Cave-ins Triggered . | . . . . . . . . . . . . . . . Exploration Rate (%) 43 | 5 84 44 96 79 31 32 62 7 13 13 57 7 55 63 Regions Visited 14 Branch Regions 8 Pre-discovered Areas 2 | . . . . 1 1 . . . . . . . . . Known Exits Taken 9 | . . . . . 1 1 1 1 1 1 1 1 1 . Unknown Exits Taken 5 | 1 1 1 1 1 . . . . . . . . . . Scrap Searched 11 | . . 1 . 6 . . 3 1 . . . . . . Spaces Dug 51 | . . . . . 4 10 . . 1 6 2 3 8 17 Terrain Destroyed 123 | . . 70 2 . 4 10 . . 1 6 2 3 8 17 Melee 48 | . . . . . 4 10 . . 1 6 2 3 8 14 Projectile 5 | . . . 2 . . . . . . . . . . 3 AOE 70 | . . 70 . . . . . . . . . . . . Terrain Rammed . | . . . . . . . . . . . . . . . Walls Destroyed . | . . . . . . . . . . . . . . . Machines Disabled . | . . . . . . . . . . . . . . . Actions | -11 -10 -10 -8 -8 -6 -5 -5 -5 -4 -3 -3 -2 -2 -2 --------- Run | Yrd Mat Sub Rec Scr Fac Fac Upp Upp Fac Res Qua Res Tes Frg Total 11276 | 60 882 974 661 1059 1103 1004 311 45 330 337 343 291 485 3391 Wait 426 | . 133 14 16 23 70 43 5 . . 2 4 2 37 77 Move 10142 | 50 680 887 620 1014 935 925 304 45 319 306 314 269 437 3037 Hop 58 | . . . . . 3 10 . . 2 2 8 2 . 31 Pick Up 92 | 3 16 8 5 11 10 6 1 . 2 4 3 3 . 20 Fast Attach 62 | 6 2 . . 1 8 2 1 . 2 4 2 . . 34 Attach 50 | . 1 7 4 . 10 3 . . 1 1 1 3 1 18 Detach 8 | . . . . . 1 2 . . . . . 1 . 4 Swap 33 | . 4 9 1 2 3 2 . . 2 3 1 2 . 4 Drop 85 | . 7 . . 8 17 1 . . 1 8 5 3 . 35 Fire 115 | 1 39 49 15 . . . . . . . . . . 11 Melee 78 | . . . . . 11 10 . . 1 7 4 6 10 29 Ram . | . . . . . . . . . . . . . . . Kick . | . . . . . . . . . . . . . . . Crush . | . . . . . . . . . . . . . . . Escape Stasis 58 | . . . . . 35 . . . . . 1 . . 22 Rewire . | . . . . . . . . . . . . . . . Trap . | . . . . . . . . . . . . . . . Miscellaneous 69 | . . . . . . . . . . . . . . 69 Route ------- -11/Scrapyard -10/Materials (discovered 5 exits: [*Mat x2] / [*Min x2] / [*Sub]) -10/Subcaves (discovered 3 exits: *Mat x2 / *Rec) -8/Recycling (discovered 2 exits: *Fac / *Scr) -8/Scraptown (discovered 2 exits: *Fac x2) -6/Factory -5/Factory (discovered 2 exits: *Fac / *Upp) -5/Upper Caves -5/Upper Caves -4/Factory (discovered 5 exits: *Res x4 / Ext) -3/Research -3/Quarantine -2/Research (discovered 2 exits: *Tes x2) -2/Testing (discovered 2 exits: *Sec / *Frg) -2/Protoforge (discovered 1 exit: [*Acc]) History --------- Turn | Location | Event 15 | -11/Scrapyard | Discovered new exit (range 16) 91 | -11/Scrapyard | Entered Materials 315 | -10/Materials | Build established: Mutant 451 | -10/Materials | Central database locked down 502 | -10/Materials | Discovered new exit (range 10) 596 | -10/Materials | Discovered new exit (range 13) 647 | -10/Materials | Discovered new exit (range 12) 691 | -10/Materials | Derelicts attacked the area 985 | -10/Materials | Discovered new exit (range 15) 1340 | -10/Materials | Discovered new exit (range 14) 1802 | -10/Materials | Entered Subcaves 2618 | -10/Subcaves | Discovered new exit (range 14) 3396 | -10/Subcaves | Identified exit to Materials 4254 | -10/Subcaves | Ambushed by Subdweller buried in earth 4750 | -10/Subcaves | Discovered new exit (range 14) 4836 | -10/Subcaves | Entered Recycling 5158 | -8/Recycling | Build established: Scavenger-Mutant 5531 | -8/Recycling | Discovered new exit (range 16) 6811 | -8/Recycling | Scanned before Scraplab entrance 6866 | -8/Recycling | Entered Scraplab 6891 | -8/Recycling | Discovered new exit (range 3) 6898 | -8/Recycling | Entered Scraptown 7084 | -8/Scraptown | Visited Cave Peace 7128 | -8/Scraptown | Visited Spacefarers 7158 | -8/Scraptown | Visited Fellowship of the Rings 7190 | -8/Scraptown | Heard Great Nut preacher, LISTEN AND RECITE! 7205 | -8/Scraptown | Visited Comm Corps 7220 | -8/Scraptown | Visited Artisan Demo Area 7235 | -8/Scraptown | Visited IN-MT5's Study 7542 | -8/Scraptown | Discovered new exit (range 13) 7619 | -8/Scraptown | Scanned Subdweller tech in exchange for log data 7623 | -8/Scraptown | Learned location of Quarantine (-3) 7625 | -8/Scraptown | Learned Research stockpile data 7694 | -8/Scraptown | Visited UFD Registry 7694 | -8/Scraptown | Registered with UFD as "Protonframe" 7729 | -8/Scraptown | Visited Botcube Research 7822 | -8/Scraptown | Delivered Scrap Shield to a Scientist 7893 | -8/Scraptown | Visited Derelict Rescue Squad 7902 | -8/Scraptown | Found DRS Beacon 7927 | -8/Scraptown | Visited Research Penetration Think Tank 7958 | -8/Scraptown | Visited Science Testing Area 7971 | -8/Scraptown | Visited LU-1G1's Boring Crew 8033 | -8/Scraptown | Visited DA-N13 Charitable Foundation 8047 | -8/Scraptown | Found DCF Scrap (26 items) 8099 | -8/Scraptown | Visited Junk Cannon Lab 8124 | -8/Scraptown | Found Prototype Special Weapon 8124 | -8/Scraptown | Identified Junk Cannon 8314 | -8/Scraptown | Met Optimus 8314 | -8/Scraptown | Accepted into 0bPrime 8410 | -8/Scraptown | Discovered new exit (range 3) 8413 | -8/Scraptown | Entered Factory 8413 | -6/Factory | Evolved 8 slots: Propulsion x4, Utility x4 8498 | -6/Factory | Loaded intel: 8 recycling unit locations 8554 | -6/Factory | Learned location of Protoforge (-2) 8684 | -6/Factory | Spotted B-75 Beast 8685 | -6/Factory | Identified exit to DSF 8784 | -6/Factory | Discovered new exit (range 5) 8785 | -6/Factory | Identified exit to Factory 8796 | -6/Factory | Entered another Factory area 8796 | -5/Factory | Evolved 2 slots: Propulsion x1, Utility x1 8832 | -5/Factory | Spotted B-75 Beast 8884 | -5/Factory | Discovered new exit (range 9) 8886 | -5/Factory | Identified exit to Factory 8946 | -5/Factory | Loaded intel: 8 recycling unit locations 9059 | -5/Factory | Discovered new exit (range 7) 9060 | -5/Factory | Identified exit to Upper Caves 9066 | -5/Factory | Entered Upper Caves 9068 | -5/Upper Caves | UFD Scientist delivered a prototype 9068 | -5/Upper Caves | Found Prototype Protection 9081 | -5/Upper Caves | Encountered a Warlord checkpoint 9084 | -5/Upper Caves | Learned location of 1 exit from Factory 9116 | -5/Upper Caves | Attracted the attention of an 0b10 checkpoint 9140 | -5/Upper Caves | Discovered new exit (range 5) 9140 | -5/Upper Caves | Identified exit to Upper Caves 9141 | -5/Upper Caves | Entered another Upper Caves area 9150 | -5/Upper Caves | Discovered exit to Factory (range 9) 9151 | -5/Upper Caves | Entered Factory 9151 | -4/Factory | Evolved 2 slots: Propulsion x1, Utility x1 9152 | -4/Factory | Identified exit to Extension 9175 | -4/Factory | Identified exit to Research 9185 | -4/Factory | Spotted B-86 Titan 9225 | -4/Factory | Entered Research 9225 | -3/Research | Evolved 2 slots: Power x1, Utility x1 9269 | -3/Research | Loaded intel: 5 recycling unit locations 9278 | -3/Research | Build established: Scientist-Scout 9280 | -3/Research | Identified Enh. Scrap Shield 9322 | -3/Research | Discovered new exit (range 21) 9326 | -3/Research | Identified exit to Quarantine 9327 | -3/Research | Entered Quarantine 9384 | -3/Quarantine | Identified exit to Research 9411 | -3/Quarantine | Found Alien Artifact 9415 | -3/Quarantine | Spotted Alpha 7 9433 | -3/Quarantine | Entered Research 9433 | -2/Research | Evolved 2 slots: Propulsion x1, Utility x1 9441 | -2/Research | Found Prototype Hackware 9445 | -2/Research | Identified Exp. Hacking Suite 9456 | -2/Research | Identified exit to Testing 9527 | -2/Research | Entered Testing 9649 | -2/Testing | Spotted Fortress 9678 | -2/Testing | Discovered new exit (range 6) 9678 | -2/Testing | Discovered new exit (range 5) 9679 | -2/Testing | Identified exit to Protoforge 9679 | -2/Testing | Identified exit to Section 7 9680 | -2/Testing | Entered Protoforge 9703 | -2/Protoforge | Spotted Hotshot 9703 | -2/Protoforge | Spotted Hotshot 9754 | -2/Protoforge | Superfortress began startup sequence 9760 | -2/Protoforge | Spotted Hotshot 9762 | -2/Protoforge | Spotted Hotshot 9764 | -2/Protoforge | Spotted Hotshot 9764 | -2/Protoforge | Spotted Hotshot 9826 | -2/Protoforge | Spotted Overlord 9832 | -2/Protoforge | Spotted AP7-3 9832 | -2/Protoforge | Spotted AP7-3 9866 | -2/Protoforge | Lost 9 parts (3p2n4u) 9868 | -2/Protoforge | Spotted EXE-6 9868 | -2/Protoforge | Spotted EXE-6 9898 | -2/Protoforge | UFD initiated attack on Protoforge (Readiness: Adequate) 9898 | -2/Protoforge | Loaded intel: 3 recycling unit locations 9901 | -2/Protoforge | Found Prototype Device 9902 | -2/Protoforge | Identified Exp. EM Disruption Field 9932 | -2/Protoforge | Found Scrap Suit 9934 | -2/Protoforge | Optimus greeted in Protoforge 9952 | -2/Protoforge | Forge Plexus network access discovered 9952 | -2/Protoforge | Found UFD Drillbomb 9956 | -2/Protoforge | Found 0bPrime Scrap Suit 9969 | -2/Protoforge | Spotted Decapitator 9971 | -2/Protoforge | Lost 7 allies 9971 | -2/Protoforge | Spotted Decapitator 9972 | -2/Protoforge | Spotted Decapitator 9973 | -2/Protoforge | Spotted Decapitator 9988 | -2/Protoforge | P-80 Master assimilated allied Lugger 047 9996 | -2/Protoforge | P-80 Master assimilated allied O2-APM(E) 10002 | -2/Protoforge | Spotted SKR-2 10004 | -2/Protoforge | Spotted SKR-2 10004 | -2/Protoforge | Spotted SKR-2 10034 | -2/Protoforge | Met 7R-MNS 10045 | -2/Protoforge | Spotted EXE-6 10051 | -2/Protoforge | Lost 10 allies 10052 | -2/Protoforge | Found Cep. XC Strikerail 10137 | -2/Protoforge | Installed UFD Drillbomb at designated target 10137 | -2/Protoforge | UFD reported confirmed Drillbomb installation 10170 | -2/Protoforge | Found UFD Drillbomb 10217 | -2/Protoforge | Installed UFD Drillbomb at designated target 10217 | -2/Protoforge | UFD reported confirmed Drillbomb installation 10250 | -2/Protoforge | Found UFD Drillbomb 10288 | -2/Protoforge | Installed UFD Drillbomb at designated target 10288 | -2/Protoforge | UFD reported confirmed Drillbomb installation 10306 | -2/Protoforge | Found UFD Drillbomb 10325 | -2/Protoforge | Spotted Striker 10327 | -2/Protoforge | Spotted Executioner 10358 | -2/Protoforge | Installed UFD Drillbomb at designated target 10358 | -2/Protoforge | UFD reported confirmed Drillbomb installation 10367 | -2/Protoforge | Spotted Striker 10368 | -2/Protoforge | Spotted Executioner 10371 | -2/Protoforge | Lost 4 allies 10408 | -2/Protoforge | Build established: Scavenger-Sprinter 10424 | -2/Protoforge | Found UFD Drillbomb 10429 | -2/Protoforge | Lost 3 allies 10433 | -2/Protoforge | Found UFD Drillbomb 10440 | -2/Protoforge | Spotted Decapitator 10475 | -2/Protoforge | Spotted Executioner 10496 | -2/Protoforge | Spotted Executioner 10521 | -2/Protoforge | Installed UFD Drillbomb at designated target 10521 | -2/Protoforge | UFD reported confirmed Drillbomb installation 10529 | -2/Protoforge | Spotted Hotshot 10530 | -2/Protoforge | Spotted Hotshot 10531 | -2/Protoforge | Spotted Executioner 10557 | -2/Protoforge | Installed UFD Drillbomb at designated target 10557 | -2/Protoforge | UFD reported confirmed Drillbomb installation 10620 | -2/Protoforge | Spotted Striker 10621 | -2/Protoforge | Spotted Striker 10656 | -2/Protoforge | Lost 5 parts (2n3u) 10672 | -2/Protoforge | UFD reported confirmed Drillbomb installation 10728 | -2/Protoforge | Discovered new exit (range 21) 10738 | -2/Protoforge | Identified Subatomic Replicator 10738 | -2/Protoforge | Used Subatomic Replicator to replicate UFD Drillbomb 10740 | -2/Protoforge | Installed UFD Drillbomb at designated target 10740 | -2/Protoforge | UFD reported confirmed Drillbomb installation 10748 | -2/Protoforge | Spotted Striker 10748 | -2/Protoforge | Spotted Executioner 10748 | -2/Protoforge | Spotted Executioner 10748 | -2/Protoforge | Spotted Executioner 10760 | -2/Protoforge | Spotted Hotshot 10760 | -2/Protoforge | Spotted Hotshot 10760 | -2/Protoforge | Spotted Hotshot 10760 | -2/Protoforge | Spotted Hotshot 10765 | -2/Protoforge | Spotted Striker 10766 | -2/Protoforge | Spotted Immortal 10766 | -2/Protoforge | Spotted Immortal 10768 | -2/Protoforge | Found UFD Drillbomb 10789 | -2/Protoforge | Core integrity fell below 50% 10827 | -2/Protoforge | Lost 15 parts (3p5n6u1w) 10896 | -2/Protoforge | Spotted Immortal 10919 | -2/Protoforge | Lost 3 allies 10926 | -2/Protoforge | Found Cep. Concussive Dispersal Blaster 10929 | -2/Protoforge | Spotted Immortal 10929 | -2/Protoforge | Spotted Immortal 10931 | -2/Protoforge | Spotted Decapitator 10931 | -2/Protoforge | Spotted Decapitator 10931 | -2/Protoforge | Spotted Decapitator 10934 | -2/Protoforge | Destroyed Decapitator 10957 | -2/Protoforge | Core integrity fell below 20% 10959 | -2/Protoforge | Spotted Immortal 10960 | -2/Protoforge | Spotted Immortal 10969 | -2/Protoforge | Spotted Executioner 10969 | -2/Protoforge | Spotted Executioner 10969 | -2/Protoforge | Spotted Executioner 10969 | -2/Protoforge | Spotted Striker 10973 | -2/Protoforge | Destroyed by Executioner with Helical Railgun Last Messages --------------- 10969_ Penetrated by Slug. 10969_ Slug penetrates Reinforced Barrier. 10969_ Slug penetrates Decapitator. 10969_ Decapitator destroyed. 10969_ Slug penetrates Reinforced Barrier. 10970_ Slug penetrates Machine. 10970_ Penetrated by Slug. 10970_ Slug penetrates Reinforced Barrier. 10970_ Acquired 3 matter. 10970_ Acquired Exp. Surge Thruster. 10971_ Railslug penetrates Reinforced Barrier. 10972_ C-45 Heavy ARC bursts open, deploying its payload. 10972_ G-73 Enforcer unfolds itself. 10972_ P-80 Master unfolds itself. 10972_ L-61 Swordsman unfolds itself. 10972_ S-43 Plague unfolds itself. 10972_ I-47 Archangel unfolds itself. 10972_ Slug penetrates Reinforced Barrier. 10973_ Penetrated by Slug. Map ----- +----------------------------------------------------+ | ?????????????????????????????????????????????????? | | ???????????????????????????????????? ??????????? | | ???????????????????????????????????? ??????????? | | ???????????????????????????????????? #?????????? | | ???????????????????????????????????? #?????????? | | ???????????????????????????????????? #?????????? | | ??????????????????????#????????????? #?????????? | | ????????????????????? #????????????? #?????????? | | ????????????????????? #????????????? #?????????? | | ????????????????????? #????????????? #?????????? | | ???????????????????? #????????????? #?????????? | | ???????????????????? #????????????# #?????????? | | ???????????????????? #????????????# ?????????? | | #################### #????????????# ?????????? | | ##???????????# #?????????? | | #???????????# #?????????? | | #???????????# #?????????? | | #####"""######## #####???????????# #?????????? | | ?# #???#^ #???????????????# #?????????? | | ?# #???# #???????????????# #?????????? | | ?# " " #???# #???????????????# #?????????? | | ?# " " #???# #???????????????# #?????????? | | ?# ""G"" #???# #???????????????# #?????????? | | ?# #???# #???????????????# #?????????? | | ?###########???# ################# #?????????? | | ???????????????# @ #?????????? | | ???????????????# c% #?????????? | | ???????????????# #?????????? | | ???????????????######## ########?????????? | | ??????????????????????; #????????????????? | | ?????????????????????## #????????????????? | | ??????????????????????# #????????????????? | | ??????????????????????# #????????????????? | | ??????????????????????## ##????????????????? | | ??????????????########## ##????????????????? | | ??????????????########## #########?????????? | | ??????????????##?"""""""l % """""""#?????????? | | ####?########?## """" igE """" #?????????? | | ####?########?## "" Cps "" #???######? | | ??#####????##### T" x E !" #???#""""#? | | !!#####]]]]##### !$ #####== =## | | ???????????? FFFEK $$$ | | ???????????? FFF * | | ??????????? FFF | | ???????????? % | | ???????????? ![ % | | ????????????? = %!%& | | !!#####????##### "####****## | | ??#####????#####"""""""""""""""""""""""##??#""""#? | | ####?########?##"""""""""""""""""""""""#???######? | +----------------------------------------------------+ Best States ------------- Heat Dissipation 87 Coolant Potential 120 Energy Generation 39 Energy Capacity 550 Matter Stores 300 Matter Capacity 300 Sight Range 22 Robot Scan Range 16 Terrain Scan Range 20 Terrain Scan Density 210 Jamming Range 12 Armor Coverage 800 Core Shielding 10 Propulsion Shielding 15 Evasion (%) 78 Melee Accuracy 5 Armor Integrity Analysis 30 Recoil Reduction 2 Offensive Hacking 26 Defensive Hacking 10 Item Schematics ----------------- None Robot Schematics ------------------ None Fabricated ------------ Nothing Repaired ---------- Nothing Studied --------- Scythe | -6/Factory | Hacked VTOL Module | -6/Factory | Hacked Xenon Bombardment Thruster | -6/Factory | Hacked Cesium-ion Thruster | -6/Factory | Hacked Impulse Thruster Array | -3/Quarantine | Hacked Enh. Force Lance | -2/Protoforge | Hacked Alien Tech Used ----------------- Subatomic Replicator Achievements -------------- Hulk Smash Inventory(Loot) Challenges ------------ None Game ------ Seed GravityDerelictBoregun Manual? 0 Play Time 02:24:28 Cumulative 128.7 hours Start 2026.07.29 @ 12:09:13 End 2026.07.29 @ 14:40:19 Sessions 1 Manual Loads 0 Difficulty Rogue Special Mode None Game No. 142 Rogue 88 Adventurer 54 Explorer 0 Win Type - Total 3 Types 2/0/0/1/0/0/0/0/0/0 Lore% 54 Gallery% 52 Achievement% 47 Wizard Run 0 Options --------- Layout 1 ASCII 0 Keyboard 0 Movement Mouse Keybinds 1 Fullscreen 1 Font 32/Tamsyn Map View 50x35 Zoom Use 0% Tactical HUD 1 Map Filters NONE Filters NONE Steam 1 RUN: 3368a511-3794-4423-9d86-db7977c71988